[Event "31st Kavala Open-A 2022"]
[Site "Kavala"]
[Date "2022.07.28"]
[Round "4.5"]
[White "Vrolijk, Liam"]
[Black "Levin, Guy"]
[Result "0-1"]
[ECO "D26"]
[WhiteElo "2464"]
[BlackElo "2363"]
[Annotator "TA"]
[PlyCount "112"]
[EventDate "2022.07.27"]
[EventType "swiss"]
[EventCountry "GRE"]
[SourceTitle "playchess.com"]
[Source "ChessBase"]
[SourceQuality "1"]
[TimeControl "40/5400+30:1800+30"]

{[%evp 15,112,18,23,25,37,31,51,36,36,30,19,23,21,32,66,67,64,66,68,76,87,85,80,82,75,67,100,104,104,77,100,87,84,85,101,101,113,112,105,95,66,43,60,31,21,0,0,0,0,0,30,0,0,0,187,-62,-62,-66,-66,-281,-281,-290,-290,-248,-241,-282,-267,-459,-429,-474,-445,-451,-435,-417,-402,-578,-404,-653,-645,-931,-922,-2116,-814,-2451,-1973,-29964,-29965,-29965,-29966,-29965,-29968,-29968,-29969,-29969,-29966,-29959,-29951,-6091,-5103]} 1. d4 {[%emt 0:01:29]} d5 {[%emt 0:00:05]} 2. c4 {[%emt 0:00:10]} dxc4 {[%emt 0:00:05]} 3. Nf3 {[%emt 0:00:13]} Nf6 {[%emt 0:00:04]} 4. e3 {[%emt 0:00:06]} e6 {[%emt 0:00:03]} 5. Bxc4 {[%emt 0:00:08]} a6 {[%emt 0:00:04]} 6. O-O {[%emt 0:01:03]} b5 {[%emt 0:00:04]} 7. Bd3 {[%emt 0:01:13]} Bb7 {[%emt 0:00:06]} 8. a4 {[%emt 0:02:14]} b4 {[%emt 0:01:11]} 9. Nbd2 {[%emt 0:01:22] D26: Queen's Gambit Accepted: 4 e3 e6 5 Bxc5 c5 sidelines.} c5 {[%emt 0:00:38]} 10. Qe2 {[%emt 0:00:42]} Nbd7 {[%emt 0:00:17]} 11. a5 {[%emt 0:01:52] White is slightly better.} Be7 {[%emt 0:00:35]} 12. e4 {[%emt 0:01:47][%cal Be3e4,Be4e5][%mdl 32]} cxd4 {[%emt 0:02:20]} 13. e5 {[%emt 0:00:13]} Nd5 {[%emt 0:06:32]} 14. Nb3 {[%emt 0:00:50]} Nc5 {[%emt 0:13:12]} 15. Nxc5 {[%emt 0:01:58]} Bxc5 {[%emt 0:00:03]} 16. Bd2 {[%emt 0:00:43] [#]} h6 $146 {[%emt 0:11:29]} ({Predecessor:} 16... Be7 17. Qe4 Qd7 18. Qxd4 O-O 19. Bg5 Rfd8 20. Rfd1 h6 21. Bxe7 Qxe7 {0-1 (66) Mekhitarian,K (2536)-Molina,R (2458) Natal 2019}) 17. Rfc1 {[%emt 0:04:19]} Qe7 {[%emt 0:00:28][%cal Od5c3]} 18. Rc4 {[%emt 0:11:43] Against Nc3} O-O {[%emt 0:14:55]} 19. Rxc5 {[%emt 0:10:22]} Qxc5 {[%emt 0:11:15]} 20. Qe4 {[%emt 0:00:24][%csl Gd3][%cal Re4h7]} Rfc8 {[%emt 0:02:00]} (20... g6 21. Bxh6 Rfd8 22. Qg4 $16) 21. Qh7+ {[%emt 0:03:48]} Kf8 {[%emt 0:00:03]} 22. Qh8+ {[%emt 0:01:35]} Ke7 {[%emt 0:00:01]} 23. Qxg7 {[%emt 0:00:09]} Rg8 {[%emt 0:07:30]} 24. Qxh6 {[%emt 0:02:50]} Rh8 {[%emt 0:06:29]} 25. Qg5+ {[%emt 0:03:14][%mdl 1024] White has strong compensation.} (25. Qg7 $2 Rag8 26. Qxh8 Rxh8 $19) 25... Kd7 {[%emt 0:00:02]} 26. Qg4 {[%emt 0:02:36]} Rag8 {[%emt 0:09:08]} 27. Ng5 $1 {[%emt 0:05:05]} Ne7 {[%emt 0:08:15]} 28. Rc1 {[%emt 0:15:50]} Qxa5 {[%emt 0:00:07]} 29. Qf4 {[%emt 0:07:10]} Bxg2 $1 {[%emt 0:00:16] Hoping for ...Bc6.} 30. Qxd4+ {[%emt 0:03:25]} (30. f3 $5 {[%cal Rf4d4]} Qb6 31. Rc4 (31. Kxg2 $2 Rxg5+ 32. Qxg5 Rg8 $17) 31... Rxg5 32. Qxg5 (32. Qxd4+ Qxd4+ 33. Rxd4+ Nd5 $14) 32... Bxf3 33. Qf6 $11 (33. Bxb4 $2 Rg8 $19)) 30... Qd5 {[%emt 0:00:16]} 31. Qa7+ {[%emt 0:02:12]} Qb7 {[%emt 0:00:01]} 32. Qc5 {[%emt 0:00:33]} Bc6 {[%emt 0:03:52]} 33. Qd6+ {[%emt 0:01:51]} (33. Be4 $5 Rh4 34. Bxc6+ Nxc6 35. Qd6+ Ke8 36. Qxc6+ Qxc6 37. Rxc6 Rg4+ 38. Kf1 R8xg5 39. Bxg5 Rxg5 40. Rxa6 $11) 33... Ke8 {[%emt 0:00:02]} 34. Be4 $1 {[%emt 0:02:23] This bishop pair is nice.} Rh5 $2 {[%emt 0:00:59]} (34... Bxe4 $2 35. Rc7 Qxc7 36. Qxc7 $18) (34... Rh4 $1 $11 35. Qxc6+ (35. Bxc6+ Nxc6 36. Qxc6+ Qxc6 $11) 35... Qxc6 36. Bxc6+ Nxc6 37. Rxc6 Rg4+ 38. Kf1 R8xg5 39. Bxg5 Rxg5) 35. h4 $2 {[%emt 0:06:53] [#]} Rxh4 $1 $15 {[%emt 0:00:09]} 36. Bxc6+ {[%emt 0:02:44]} Nxc6 {[%emt 0:00:02]} 37. Rxc6 $2 {[%emt 0:00:11] White does not recover from this.} (37. Qxc6+ $15 Qxc6 38. Rxc6 Rg4+ 39. Kf1 R8xg5 40. Bxg5 Rxg5 41. Rxa6) 37... Rg4+ $1 $19 {[%emt 0:00:05]} 38. Kh2 {[%emt 0:00:26] [#]} Rh8+ $1 {[%emt 0:00:33]} ({Don't do} 38... R8xg5 39. Bxg5 Rxg5 40. f3 Rxe5 41. Rc7 Qxc7 42. Qxc7 Rh5+ 43. Kg3 $18) 39. Nh3 {[%emt 0:00:06] [#]} Rgh4 $1 $40 {[%emt 0:00:02][%cal Bg4h4,Bh4h3,Bh3d3][%mdl 160] Black wants a kill. Dancing on a razor blade.} 40. Bg5 {[%emt 0:00:00][%csl Gg5][%cal Rd6d8]} Rxh3+ {[%emt 0:00:00]} 41. Kg2 $2 {[%emt 0:05:27] [#]} (41. Kg1 Rh1+ 42. Kg2) 41... Rd3 $3 {[%emt 0:03:25][%mdl 512]} 42. Qc7 {[%emt 0:01:01]} (42. Qxd3 Qxc6+) 42... Qxc7 {[%emt 0:01:34]} 43. Rxc7 {[%emt 0:00:05][%mdl 4096] Endgame Black must now prevent Rc8+. KRR-KRB} Rh5 {[%emt 0:02:21]} 44. Bf6 {[%emt 0:03:28] And now Rc8+ would win.} Rb3 {[%emt 0:07:22] Strongly threatening ...Rf5.} 45. Ra7 {[%emt 0:04:58]} (45. Re7+ $142 Kf8 46. f3 Rxb2+ 47. Kg3) 45... Rxb2 {[%emt 0:01:27]} 46. Kg3 {[%emt 0:06:03]} (46. Re7+ $142 Kf8 47. Kg3) 46... Rf5 {[%emt 0:05:56]} 47. f4 {[%emt 0:00:28]} b3 {[%emt 0:00:47][%cal Bb4b3,Bb3b2][%mdl 32] ...Rb1 is the strong threat.} 48. Rxa6 {[%emt 0:02:00]} Kd7 {[%emt 0:01:22]} (48... Rb1 $142 49. Bh4 Rg1+ 50. Kf3 Rh1 51. Ra8+ Kd7 52. Ra7+ Kc8 53. Ra8+ Kd7 54. Ra7+ Kc8 55. Ra8+ Kb7) 49. Rb6 {[%emt 0:01:33]} Rb1 {[%emt 0:00:13] ( -> ...b2)} 50. Bg5 {[%emt 0:00:16]} Kc7 {[%emt 0:01:37]} 51. Rb4 {[%emt 0:00:07]} b2 {[%emt 0:00:27]} 52. Kg2 {[%emt 0:00:09] [#]} Rxg5+ $1 {[%emt 0:00:50]} 53. fxg5 {[%emt 0:00:08]} Kc6 {[%emt 0:00:03]} 54. Kh2 {[%emt 0:00:22]} Kd5 {[%emt 0:00:18]} 55. Rb5+ {[%emt 0:00:07]} Ke4 {[%emt 0:00:17]} 56. Kg2 {[%emt 0:00:16]} Kf5 {[%emt 0:00:06] Weighted Error Value: White=0.74/Black=0.21 (precise)} 0-1

[Event "31st Kavala Open-A 2022"]
[Site "Kavala"]
[Date "2022.07.28"]
[Round "4.6"]
[White "Tarhan, Adar"]
[Black "Can, Isik"]
[Result "1/2-1/2"]
[ECO "B28"]
[WhiteElo "2201"]
[BlackElo "2445"]
[Annotator "TA"]
[PlyCount "75"]
[EventDate "2022.07.27"]
[EventType "swiss"]
[EventCountry "GRE"]
[SourceTitle "playchess.com"]
[Source "ChessBase"]
[SourceQuality "1"]
[TimeControl "40/5400+30:1800+30"]

{[%evp 13,75,-16,-20,-18,-16,-25,-28,-17,0,0,16,0,0,-20,-27,-29,-17,-44,-65,-38,-42,-46,-49,-68,-64,-69,-67,-117,-120,-95,-85,-170,-157,-162,-170,-189,-183,-212,-218,-373,-291,-289,0,0,0,0,0,0,0,0,0,0,0,0,0,0,0,0,0,0,0,0,0,-625]} 1. e4 {[%emt 0:00:03]} c5 {[%emt 0:00:08]} 2. Nf3 {[%emt 0:00:08]} a6 {[%emt 0:00:04]} 3. d4 {[%emt 0:00:22]} cxd4 {[%emt 0:00:15]} 4. Nxd4 {[%emt 0:00:06]} Nf6 {[%emt 0:00:04]} 5. Nc3 {[%emt 0:00:07]} e5 {[%emt 0:00:04]} 6. Nf3 {[%emt 0:02:25]} Bb4 {[%emt 0:00:39]} 7. Bd2 {[%emt 0:07:02]} d6 {[%emt 0:15:57]} 8. Bc4 {[%emt 0:00:43] B28: Sicilian: 2 Nf3 a6 (O'Kelly Variation).} Qc7 {[%emt 0:10:44]} 9. Qe2 {[%emt 0:01:43]} Bxc3 {[%emt 0:13:16]} 10. Bxc3 {[%emt 0:00:30] [#] Black has an edge.} Bg4 $146 {[%emt 0:01:43]} ({Predecessor:} 10... b5 11. Bb3 Bb7 12. Nd2 Nbd7 13. a4 O-O 14. O-O Nc5 15. axb5 axb5 16. f3 b4 17. Bxb4 Nxb3 18. Nxb3 {0-1 (47) Pemberton,C (1920)-Grabitz,G (2079) Dresden 2007}) 11. O-O-O {[%emt 0:04:14] Strongly threatening Bb4.} Nc6 {[%emt 0:10:14] Against Bb4} 12. Bb3 {[%emt 0:12:09]} b5 {[%emt 0:08:56]} 13. Qd3 {[%emt 0:07:38]} (13. h3 $5 {[%cal Rh3g4]} Be6 14. Rhe1 $11) 13... Rd8 {[%emt 0:00:05]} 14. Bd2 {[%emt 0:11:45]} Nd7 {[%emt 0:08:34]} 15. Be3 {[%emt 0:21:00]} Nc5 $1 {[%emt 0:01:59]} 16. Bxc5 {[%emt 0:00:07]} dxc5 {[%emt 0:00:05]} 17. Bd5 {[%emt 0:00:06] And now Bxc6+ would win.} O-O {[%emt 0:03:15]} 18. Qe3 {[%emt 0:05:45]} Nd4 {[%emt 0:01:57]} 19. Kb1 {[%emt 0:00:46]} b4 {[%emt 0:11:00]} 20. Qg5 {[%emt 0:06:36]} (20. Rc1 $15) 20... Bxf3 $17 {[%emt 0:00:37]} 21. gxf3 {[%emt 0:00:46]} Kh8 {[%emt 0:02:10]} ({Much worse is} 21... Nxf3 $6 22. Qh5 Nd4 23. Rd3 $11) 22. Rhg1 {[%emt 0:03:05]} (22. Qe3 $17 {keeps fighting.}) 22... f6 $19 {[%emt 0:00:17]} 23. Qe3 {[%emt 0:01:24]} c4 {[%emt 0:01:17][%cal Bc5c4,Bc4c3][%mdl 32]} 24. f4 {[%emt 0:06:27]} c3 {[%emt 0:00:08]} 25. b3 {[%emt 0:00:31] [#]} Qa5 $1 {[%emt 0:00:32]} 26. Bc4 $2 {[%emt 0:06:05] [#]} ({Wrong is} 26. Qg3 $2 Rd7 27. a4 bxa3 $19) (26. f5) 26... Nxc2 $1 {[%emt 0:02:27][%mdl 512]} 27. Rxd8 {[%emt 0:00:12] [#]} Rxd8 {[%emt 0:00:01]} ({Black should play} 27... Na3+ $1 $19 28. Kc1 Qxd8) 28. Qa7 $36 {[%emt 0:00:10][%csl Gg1][%cal Ra7g7][%mdl 2048] White has some pressure. Chess con chili. The position is equal.} Na3+ {[%emt 0:03:47]} 29. Ka1 {[%emt 0:00:44][%csl Gg1][%cal Ra7g7]} Nc2+ {[%emt 0:01:01]} 30. Kb1 {[%emt 0:00:05][%csl Gg1][%cal Ra7g7]} Na3+ {[%emt 0:00:36]} 31. Ka1 {[%emt 0:00:16][%csl Gg1][%cal Ra7g7]} Nc2+ {[%emt 0:01:20]} 32. Kb1 {[%emt 0:00:10][%csl Gg1][%cal Ra7g7]} g6 {[%emt 0:01:30][%cal Oa5a3] ( -> ...Qa3!)} 33. Qe7 {[%emt 0:00:06][%cal Re7f6]} Na3+ {[%emt 0:00:17]} 34. Ka1 {[%emt 0:00:22][%cal Re7f6]} Nc2+ {[%emt 0:00:47]} 35. Kb1 {[%emt 0:00:04][%cal Re7f6]} Na3+ {[%emt 0:00:22]} 36. Ka1 {[%emt 0:00:04][%cal Re7f6]} Nxc4 {[%emt 0:00:06]} 37. Qxf6+ {[%emt 0:00:04]} Kg8 {[%emt 0:00:03]} 38. Rxg6+ $2 {[%emt 0:00:04][%mdl 40960] Weighted Error Value: White=0.19 (very precise) /Black=0.16 (very precise) . An unexpected result.} (38. Qe6+ $11 Kg7 39. Qe7+ Kh8 40. Qf6+ Kg8 41. Qe6+ Kh8 42. Qf6+) 1/2-1/2

[Event "31st Kavala Open-A 2022"]
[Site "Kavala"]
[Date "2022.07.28"]
[Round "4.7"]
[White "Schroeder, Jan-Christian"]
[Black "Vafiadis, Kleanthis"]
[Result "1-0"]
[ECO "B72"]
[WhiteElo "2563"]
[BlackElo "2286"]
[Annotator "TA"]
[PlyCount "49"]
[EventDate "2022.07.27"]
[EventType "swiss"]
[EventCountry "GRE"]
[SourceTitle "playchess.com"]
[Source "ChessBase"]
[SourceQuality "1"]
[TimeControl "40/5400+30:1800+30"]

{[%evp 14,49,37,25,22,31,29,15,66,52,51,50,58,38,54,37,49,22,62,61,105,93,151,156,147,112,216,231,257,251,552,546,912,921,1261,1223,1112,1062]} 1. e4 {[%emt 0:00:15]} c5 {[%emt 0:00:12]} 2. Nf3 {[%emt 0:00:00]} d6 {[%emt 0:00:14]} 3. d4 {[%emt 0:00:06]} cxd4 {[%emt 0:00:11]} 4. Nxd4 {[%emt 0:00:04]} Nf6 {[%emt 0:00:07]} 5. Nc3 {[%emt 0:00:06]} a6 {[%emt 0:00:10]} 6. Bd3 {[%emt 0:00:25]} g6 {[%emt 0:01:36]} 7. f3 {[%emt 0:00:08]} Bg7 {[%emt 0:01:40]} 8. Be3 {[%emt 0:00:04]} Nc6 {[%emt 0:01:23] B72: Sicilian Dragon: 6 Be3, lines with h3+Bc4 and sidelines.} 9. Qd2 {[%emt 0:00:23]} O-O {[%emt 0:12:43]} 10. O-O-O {[%emt 0:00:06]} Nxd4 {[%emt 0:02:25]} (10... d5 $11) 11. Bxd4 $14 {[%emt 0:00:05]} Be6 {[%emt 0:00:07]} 12. Kb1 {[%emt 0:11:58] [#]} Qa5 $146 {[%emt 0:21:16]} ({Predecessor:} 12... Re8 13. g4 Qa5 14. h4 Rec8 15. a3 b5 16. h5 Rab8 17. hxg6 fxg6 18. Bxf6 exf6 {1-0 (29) Fedorov,A (2551)-Istratescu,A (2564) Alba Iulia 2019}) 13. Qe3 {[%emt 0:17:18]} Nd7 {[%emt 0:07:30] Against Bb6} 14. Bxg7 {[%emt 0:00:56]} Kxg7 {[%emt 0:00:05]} 15. h4 {[%emt 0:03:35]} (15. f4 $5 {[%cal Rf4f5]}) 15... h6 {[%emt 0:00:53]} 16. f4 {[%emt 0:04:44][%cal Oh4h5,Bf3f4,Bf4f5][%mdl 32]} Qc5 {[%emt 0:07:05]} 17. Qg3 {[%emt 0:02:39]} h5 {[%emt 0:20:01]} ({Better is} 17... Rac8) 18. f5 $1 $36 {[%emt 0:17:05][%mdl 2048] White has strong initiative.} Bc4 {[%emt 0:01:39]} 19. Qg5 {[%emt 0:00:39] [#] Black must now prevent Bxc4.} Ne5 {[%emt 0:04:18]} (19... Nf6 $16) 20. Qxe7 $18 {[%emt 0:03:03]} b5 {[%emt 0:00:20]} 21. Bxc4 {[%emt 0:05:09] Dancing on a razor blade.} Nxc4 {[%emt 0:01:45]} (21... Rae8 {is more resistant.} 22. f6+ (22. Qxd6 Qxd6 23. Rxd6 Nxc4 $18) 22... Kh7 23. Bxf7 (23. Qxd6 Qxd6 24. Rxd6 Nxc4 $18) 23... Nxf7) 22. Nd5 {[%emt 0:00:38] aiming for Qf6+. White is clearly winning.} Ne5 {[%emt 0:11:14]} 23. fxg6 {[%emt 0:01:26] [#] Strongly threatening Qf6+.} Nxg6 {[%emt 0:00:10]} 24. Qf6+ {[%emt 0:00:07]} Kh7 {[%emt 0:00:27]} 25. g4 {[%emt 0:02:23] Weighted Error Value: White=0.06 (flawless) /Black=0.49} 1-0

[Event "31st Kavala Open-A 2022"]
[Site "Kavala"]
[Date "2022.07.28"]
[Round "4.8"]
[White "Priyanka Nutakki"]
[Black "Gagare, Shardul"]
[Result "0-1"]
[ECO "D37"]
[WhiteElo "2308"]
[BlackElo "2514"]
[Annotator "TA"]
[PlyCount "48"]
[EventDate "2022.07.27"]
[EventType "swiss"]
[EventCountry "GRE"]
[SourceTitle "playchess.com"]
[Source "ChessBase"]
[SourceQuality "1"]
[TimeControl "40/5400+30:1800+30"]

{[%evp 10,48,22,10,19,-17,0,0,5,-106,-41,-129,-127,-131,-128,-129,-124,-130,-145,-125,-126,-166,-129,-189,-188,-366,-378,-382,-396,-383,-366,-445,-459,-529,-379,-377,-355,-610,-593,-607,-562]} 1. d4 {[%emt 0:04:03]} Nf6 {[%emt 0:00:55]} 2. c4 {[%emt 0:00:10]} e6 {[%emt 0:00:34]} 3. Nf3 {[%emt 0:00:28]} d5 {[%emt 0:02:11]} 4. Nc3 {[%emt 0:00:28]} Nbd7 {[%emt 0:05:16]} 5. Bf4 {[%emt 0:01:55]} Bb4 {[%emt 0:06:55]} 6. e3 {[%emt 0:00:45]} c5 {[%emt 0:09:23] D37: Queen's Gambit Declined: 5 Bf4.} 7. dxc5 {[%emt 0:08:27] 7.Be2 is the modern continuation.} Qa5 {[%emt 0:04:36] [#]} 8. Rc1 $146 {[%emt 0:15:26]} ({Predecessor:} 8. Be2 Bxc3+ 9. bxc3 Nxc5 10. O-O O-O 11. Bd6 Re8 12. Qd4 b6 13. Ne5 Nfe4 14. Nc6 {0-1 (56) Van Foreest,L (2499)-Mikhalevski,V (2574) Saint Louis 2018}) 8... Nxc5 {[%emt 0:14:09] The position is equal.} 9. Nd4 {[%emt 0:12:41]} (9. Be5 $11 {keeps the balance.}) 9... Nce4 {[%emt 0:17:56]} (9... Bd7 $17 {Hoping for ...Qxa2.} 10. Qc2 Qxa2) 10. Qb3 {[%emt 0:08:36]} (10. a3 $15 Bxc3+ 11. bxc3) 10... e5 $17 {[%emt 0:06:34]} 11. Bxe5 {[%emt 0:03:21][%cal Rc4d5]} dxc4 {[%emt 0:02:06][%mdl 64] Discovered Attack} 12. Bxc4 {[%emt 0:13:36]} Bxc3+ {[%emt 0:00:11]} 13. Rxc3 {[%emt 0:00:15]} Qxe5 {[%emt 0:03:36]} 14. Bxf7+ {[%emt 0:00:03]} Ke7 {[%emt 0:03:08][%cal Be8e7,Be7d8,Bd8c7,Bc7b8][%mdl 32] And now ...Qa5 would win.} 15. Rc2 {[%emt 0:01:45]} Rf8 {[%emt 0:14:24]} 16. Be6 {[%emt 0:00:15]} Qa5+ $19 {[%emt 0:01:56]} ({Don't take} 16... Bxe6 17. Qxb7+ Ke8 18. Qxa8+ Kf7 19. Qxa7+ Kg8 20. Nxe6 Qxe6 21. O-O $18) 17. Kd1 $2 {[%emt 0:00:06] [#]} (17. Ke2 Nd7 18. Bxd7 Rxf2+ 19. Kd3 Bxd7 20. Qxb7 Rd2+ 21. Kxe4) 17... Nc5 $1 {[%emt 0:00:55]} 18. Nf5+ {[%emt 0:02:12]} Kd8 {[%emt 0:00:05]} 19. Rxc5 {[%emt 0:00:18]} Qxc5 {[%emt 0:00:06] The board is on fire.} 20. Qd3+ {[%emt 0:00:20]} Kc7 {[%emt 0:03:15]} 21. Ke2 {[%emt 0:00:25][%cal Oh1c1]} Rd8 {[%emt 0:00:37]} ({Not} 21... Bxe6 {[#]} 22. Rc1 $3 {[%mdl 512]} Qc6 23. Qd6+ Kb6 24. Rxc6+ bxc6 25. Qxe6 $18) 22. Nd4 {[%emt 0:00:01]} Kb8 {[%emt 0:01:09]} 23. Nc6+ $2 {[%emt 0:03:28]} (23. Qc4 Qxc4+ 24. Bxc4) 23... Qxc6 {[%emt 0:00:08]} 24. Qxd8 {[%emt 0:00:02]} Qa6+ {[%emt 0:00:10] White got outplayed after the opening.  Weighted Error Value: White=0.69/Black=0.16 (very precise)} 0-1

[Event "31st Kavala Open-A 2022"]
[Site "Kavala"]
[Date "2022.07.28"]
[Round "4.9"]
[White "Santiago, Yago De Moura"]
[Black "Kalogridis, Antonios"]
[Result "0-1"]
[ECO "D90"]
[WhiteElo "2513"]
[BlackElo "2272"]
[Annotator "TA"]
[PlyCount "112"]
[EventDate "2022.07.27"]
[EventType "swiss"]
[EventCountry "GRE"]
[SourceTitle "playchess.com"]
[Source "ChessBase"]
[SourceQuality "1"]
[TimeControl "40/5400+30:1800+30"]

{[%evp 9,112,-7,-12,-2,-5,-28,-25,-25,0,0,0,0,7,13,0,0,0,0,0,0,0,0,-7,-5,-16,-14,0,-12,58,-30,-27,-27,-33,-29,-32,0,-10,-82,-79,-85,-36,-32,-37,-43,-29,-48,-10,-32,63,-438,-431,-988,0,0,0,0,0,0,0,0,0,-137,-114,-131,0,-79,0,-135,-131,-200,-218,-217,-199,-269,-251,-313,-305,-320,-321,-321,-311,-273,-305,-310,-277,-516,-500,-640,-632,-607,-634,-615,-604,-525,-503,-757,-742,-1687,-1548,-29995,-29996,-29996,-29997,-29997,-29998]} 1. d4 {[%emt 0:06:53]} Nf6 {[%emt 0:00:05]} 2. c4 {[%emt 0:00:08]} g6 {[%emt 0:00:04]} 3. Nc3 {[%emt 0:00:06]} d5 {[%emt 0:00:02]} 4. Nf3 {[%emt 0:00:07]} Bg7 {[%emt 0:00:03]} 5. h4 {[%emt 0:00:09]} dxc4 {[%emt 0:00:02]} 6. e4 {[%emt 0:00:21] D90: Grünfeld: 4 Nf3 Bg7 sidelines.} c5 {[%emt 0:00:03]} 7. d5 {[%emt 0:00:06]} b5 {[%emt 0:00:02] Inhibits Qa4.} 8. h5 {[%emt 0:00:08] Black has an edge.} Nxh5 {[%emt 0:00:04]} (8... O-O $5 {[%cal Rb5b4]}) 9. Nxb5 {[%emt 0:00:23]} O-O {[%emt 0:00:04]} 10. Bxc4 {[%emt 0:02:29]} Bg4 {[%emt 0:00:03]} 11. Qc2 {[%emt 0:00:26]} a6 {[%emt 0:00:04]} 12. Nc3 {[%emt 0:02:36]} Bxf3 {[%emt 0:00:04]} (12... Nd7 13. Nh2 Ne5 14. Nxg4 Nxc4 15. Qe2 $16) 13. gxf3 {[%emt 0:00:07]} Qd6 {[%emt 0:00:09] [#] Prevents f4.} 14. Rxh5 $146 {[%emt 0:06:15]} ({Predecessor:} 14. Ne2 Nd7 15. f4 Nb6 16. e5 Qd7 17. Be3 Nxc4 18. Qxc4 Rfb8 19. b3 Rb4 20. Qxc5 {½-½ (77) Dragnev,V (2466)-Gopal,G (2593) Caleta 2018}) 14... gxh5 {[%emt 0:00:05]} 15. Be3 {[%emt 0:00:11]} Nd7 {[%emt 0:02:54]} 16. f4 {[%emt 0:22:21] Against Ne5} Bd4 {[%emt 0:00:35]} 17. O-O-O {[%emt 0:15:01]} Kh8 {[%emt 0:00:55]} 18. Qd2 {[%emt 0:05:45]} e5 {[%emt 0:18:41]} ({Black should play} 18... Qb6 $11) 19. fxe5 {[%emt 0:09:33]} (19. dxe6 $1 $14 fxe6 20. Ne2 Bxe3 21. Qxe3) 19... Nxe5 $11 {[%emt 0:01:38]} 20. Bxd4 {[%emt 0:02:19]} cxd4 {[%emt 0:00:04]} 21. Qxd4 {[%emt 0:00:07] f4 is the strong threat.} f6 {[%emt 0:12:19]} 22. Be2 {[%emt 0:06:32]} Rab8 {[%emt 0:06:44]} 23. Qe3 {[%emt 0:09:19]} (23. Rh1 $11) 23... Rfc8 {[%emt 0:12:01]} (23... Qb4 $6 24. Rd2 $15) 24. Rd2 {[%emt 0:02:50]} h4 {[%emt 0:04:28] Black is more active.} (24... Rg8 $17) 25. f4 $15 {[%emt 0:03:29]} Ng6 {[%emt 0:03:50]} 26. Bg4 {[%emt 0:00:05]} Rc4 {[%emt 0:09:39]} ({Don't take} 26... Qxf4 27. Qxf4 Nxf4 28. Bxc8 Rxc8 29. Rh2 $14) ({Don't play} 26... Nxf4 27. Bxc8 Rxc8 28. Rf2 $14) 27. Rf2 {[%emt 0:00:08]} Re8 {[%emt 0:06:37]} 28. Be6 {[%emt 0:03:36]} h3 {[%emt 0:02:28]} (28... Rc7 $15) 29. f5 $2 {[%emt 0:02:55][%mdl 8192]} (29. Qxh3 $14 {keeps the upper hand.} Rb8 30. Qe3) 29... h2 $1 $19 {[%emt 0:03:53]} 30. Qh6 {[%emt 0:00:33] [#]} (30. Rxh2 $142 Qxh2 31. fxg6) 30... Qg3 $2 {[%emt 0:06:39]} (30... Rxc3+ $1 $19 {[%mdl 512]} 31. bxc3 Qa3+ 32. Kd1 h1=Q+ 33. Qxh1 Rb8 $1) 31. Rxh2 $11 {[%emt 0:00:27][%csl Gh2][%cal Rh6h7]} Qe1+ {[%emt 0:00:15]} 32. Kc2 {[%emt 0:00:01][%csl Gh2][%cal Rh6h7]} Qxe4+ $1 {[%emt 0:00:09]} 33. Kc1 $1 {[%emt 0:00:45][%csl Gh2][%cal Rh6h7]} (33. Kb3 $2 {leads to mate.} Rb8+ 34. Ka3 Ra4+ $3 {[%mdl 512]} 35. Nxa4 Qb4#) 33... Qf4+ {[%emt 0:02:50]} 34. Qxf4 {[%emt 0:00:43]} Nxf4 {[%emt 0:00:00]} 35. Kc2 {[%emt 0:00:09] [#]} (35. d6 $11 {remains equal.} Rc6 36. Bd7 Re1+ 37. Kd2 Rxd6+ 38. Kxe1 Rxd7 39. Rd2) 35... Rd4 $1 $17 {[%emt 0:00:49]} 36. Rh1 {[%emt 0:00:53]} Ng2 {[%emt 0:01:11]} (36... Rd8 $17 37. a3 h5) 37. Rh3 {[%emt 0:00:33]} (37. Ne2 $11 Ne3+ 38. Kc3 Rxd5 39. Bxd5 Nxd5+ 40. Kd2) 37... Nf4 {[%emt 0:02:09]} (37... Rd8 $142 38. Ne2 Re4) 38. Rh1 $1 {[%emt 0:00:29]} Rf8 {[%emt 0:02:03] White is now going downhill.} 39. a3 {[%emt 0:00:15]} (39. Rh2 $17) 39... h5 $19 {[%emt 0:00:12][%cal Bh7h5,Bh5h4,Bh4h3][%mdl 32]} 40. b4 {[%emt 0:00:00]} Kg7 {[%emt 0:00:00]} 41. Kb3 {[%emt 0:05:42]} (41. b5 $142 axb5 42. Nxb5 Nxe6 43. dxe6) 41... h4 {[%emt 0:03:43]} 42. a4 {[%emt 0:03:09]} h3 {[%emt 0:02:45]} 43. b5 {[%emt 0:02:52]} Rb8 {[%emt 0:01:30]} 44. a5 {[%emt 0:01:42]} axb5 {[%emt 0:02:33] Threatens to win with ...b4.} 45. a6 {[%emt 0:00:25]} Ra8 {[%emt 0:03:23]} 46. Nxb5 {[%emt 0:01:54]} Rd3+ {[%emt 0:02:44]} 47. Kc4 $2 {[%emt 0:00:14]} (47. Kb4 Rxa6 48. d6) 47... Rxa6 {[%emt 0:00:12] aiming for ...Ra2.} 48. Nc7 {[%emt 0:00:18]} Ra2 {[%emt 0:01:54] And now ...Rc2+ would win.} 49. Ne8+ {[%emt 0:01:13]} Kf8 {[%emt 0:00:06]} 50. Nxf6 {[%emt 0:00:10]} Rc2+ {[%emt 0:01:03]} 51. Kb4 {[%emt 0:00:45]} Rdc3 {[%emt 0:07:09]} 52. Nd7+ {[%emt 0:01:53]} Ke7 {[%emt 0:02:19]} 53. f6+ {[%emt 0:01:32]} Kd6 {[%emt 0:00:38] ( -> ...Nd3+)} 54. f7 {[%emt 0:00:19]} Nd3+ {[%emt 0:01:18] Black mates.} 55. Ka4 {[%emt 0:00:35]} Ra2+ {[%emt 0:00:10]} 56. Kb5 {[%emt 0:00:05]} Rb2+ {[%emt 0:00:03] Weighted Error Value: White=0.65/Black=0.20 (precise)} 0-1